fUSD/lending_fUSD_20240408
["ID","MTS","AMOUNT","RATE_DAILY","PERIOD"]
[321859157,1712568725553,-320.21732706,0.000209,2]
[321859158,1712568725573,-340.78368214,0.000209,2]
[321859159,1712568725594,-337.04051015,0.000209,2]
[321859160,1712568725616,-13561.21454124,0.000209,2]
[321859161,1712568725765,-236.18996574,0.00020996,2]
[321859162,1712568725787,-261.86179938,0.00020998,2]
[321859163,1712568725808,-522.74695704,0.00020998,2]
[321859164,1712568725829,-280.06516522,0.00020998,2]
[321859165,1712568725850,-157.15060433,0.00020999,2]
[321859166,1712568725872,-727.76323422,0.00020999,2]
[321859167,1712568725897,-215.47501592,0.00020999,2]
[321859168,1712568725920,-229.39144127,0.00021,2]
[321859169,1712568725945,-4168148.6218562,0.00021,2]
[321859181,1712568904004,150.5,0.0002099,15]
[321859182,1712568904641,183.09,0.0002098,15]
[321859183,1712568916170,-537.99170612,0.00019484,2]
[321859184,1712568916195,-200.0,0.00019485,2]
[321859185,1712568916216,-678.0,0.00019526,2]
[321859186,1712568916238,-500.0,0.00019761,2]
[321859187,1712568916260,-163.67460013,0.00019762,2]
[321859188,1712568916282,-150.0,0.00019862,2]
[321859189,1712568916302,-7087.3644,0.000199,2]
[321859190,1712569048121,150.48,0.00019609,2]
[321859191,1712569048312,46.48929375,0.00019669,2]
[321859192,1712569066720,200.0,0.00019571,30]
[321859193,1712569066938,200.0,0.00019571,30]
[321859194,1712569066978,200.0,0.00019571,30]
[321859195,1712569067013,200.0,0.00019571,30]
[321859196,1712569067037,200.0,0.00019571,30]
[321859197,1712569163915,495.45,0.00017292,2]
[321859198,1712569207388,200.0,0.00019473,30]
[321859199,1712569207414,200.0,0.00019473,30]
[321859200,1712569207443,200.0,0.00019473,30]
[321859201,1712569207492,200.0,0.00019473,30]
[321859202,1712569207537,200.0,0.00019473,30]
[321859203,1712569239673,151.0,0.00028161,120]
[321859204,1712569263806,150.5,0.0002099,15]
[321859205,1712569264239,150.5,0.0002098,15]
[321859206,1712569264558,158.53,0.0002097,15]
[321859208,1712569383461,150.5,0.0002099,15]
[321859209,1712569383928,150.5,0.0002098,15]
[321859210,1712569384012,150.5,0.0002099,15]
[321859211,1712569384454,150.5,0.0002097,15]
[321859212,1712569384684,150.5,0.0002098,15]
[321859213,1712569384924,150.5,0.0002099,15]
[321859214,1712569385824,150.5,0.0002097,15]
[321859215,1712569386191,150.5,0.0002098,15]
[321859216,1712569386536,150.5,0.0002097,15]
[321859217,1712569386795,150.5,0.0002099,15]
[321859218,1712569387451,231.03,0.0002098,15]
[321859219,1712569478591,5350.0,0.00026,22]
[321859220,1712569483864,5350.0,0.00026,23]
[321859221,1712569486850,5350.0,0.00026,24]
[321859222,1712569624727,150.5,0.00020989,15]
[321859223,1712569625169,192.28,0.00020979,15]
[321859224,1712569630609,176.93625808,0.00020874,30]
[321859531,1712569660329,488.82,0.00016399,2]
[321859560,1712569696546,150.0,0.00017998,2]
[321859561,1712569696567,17.74501,0.00017998,2]
[321859562,1712569700220,150.0,0.00017998,2]
[321859563,1712569700241,5.0,0.00017998,2]
[321859595,1712569832917,-443.18970024,0.0001808,2]
[321859596,1712569832927,-206.27456611,0.0001808,2]
[321859597,1712569832937,-166.03365974,0.00018081,2]
[321859598,1712569832947,-166.03365974,0.00018081,2]
[321859602,1712569833170,-1290.89052335,0.00018081,2]
[321859603,1712569833189,-166.03365974,0.00018081,2]
[321859604,1712569833199,-199.93832178,0.00018082,2]
[321859605,1712569833212,-193.7101795,0.00018082,2]
[321859606,1712569833221,-193.7101795,0.00018082,2]
[321859607,1712569833231,-193.7101795,0.00018082,2]
[321859608,1712569833241,-193.7101795,0.00018082,2]
[321859609,1712569833250,-193.7101795,0.00018082,2]
[321859610,1712569833259,-193.7101795,0.00018082,2]
[321859611,1712569833269,-500.0,0.00018083,2]
[321859612,1712569833279,-522.74695704,0.00018083,2]
[321859613,1712569833288,-2349.68963826,0.00018083,2]
[321859614,1712569833300,-8196.8866173,0.00018083,2]
[321859615,1712569833310,-155.0,0.00018084,2]
[321859616,1712569833319,-161.1031879,0.00018084,2]
[321859617,1712569833328,-426.14410958,0.00018084,2]
[321859618,1712569833338,-269.22720054,0.00018085,2]
[321859619,1712569833347,-152.0,0.00018089,2]
[321859620,1712569833356,-4318.97226357,0.00018165,2]
[321859624,1712569833441,-1167.58965611,0.00018165,2]
[321859625,1712569833453,-2148.65061177,0.00018165,2]
[321859626,1712569833465,-1993.15072588,0.00018165,2]
[321859627,1712569833479,-5642.06180557,0.00018165,2]
[321859628,1712569833488,-7635.21253145,0.00018165,2]
[321859629,1712569833498,-7635.21253145,0.00018165,2]
[321859630,1712569833507,-150.0,0.0001817,2]
[321859631,1712569833516,-150.0,0.0001817,2]
[321859632,1712569833525,-150.0,0.0001817,2]
[321859633,1712569833535,-2026.10708936,0.00018172,2]
[321859634,1712569833544,-2526.12,0.00018172,2]
[321859635,1712569833554,-23900.0,0.00018182,2]
[321859636,1712569833563,-192.82,0.00018229,2]
[321859637,1712569833571,-223.83,0.00018272,2]
[321859638,1712569833581,-156.65,0.0001854,2]
[321859639,1712569833590,-156.65,0.000186,2]
[321859640,1712569833599,-1155.4,0.00018658,2]
[321859641,1712569833609,-156.65,0.0001866,2]
[321859642,1712569833618,-488.82,0.00018662,2]
[321859643,1712569833627,-156.65,0.00018721,2]
[321859644,1712569833636,-156.65,0.00018781,2]
[321859645,1712569833646,-156.65,0.00018842,2]
[321859646,1712569833654,-270.24,0.00018852,3]
[321859647,1712569833664,-810.72,0.00018852,3]
[321859648,1712569833674,-568.18736214,0.00018859,2]
[321859649,1712569833683,-94954.53907948,0.00018862,2]
[321859650,1712569833693,-1000.0,0.00018866,2]
[321859651,1712569833703,-156.65,0.00018902,2]
[321859652,1712569833712,-1000.0,0.00018904,2]
[321859653,1712569833721,-170.41,0.00018962,2]
[321859654,1712569833730,-156.65,0.00018962,2]
[321859655,1712569833740,-233.3533178,0.00019002,2]
[321859656,1712569833749,-156.65,0.00019023,2]
[321859657,1712569833758,-156.65,0.00019083,2]
[321859658,1712569833768,-156.65,0.00019144,2]
[321859659,1712569833777,-272.24162905,0.00019178,2]
[321859660,1712569833787,-156.65,0.00019204,2]
[321859661,1712569833796,-156.65,0.00019264,2]
[321859662,1712569833806,-499.99,0.00019265,2]
[321859663,1712569833815,-156.65,0.00019325,2]
[321859664,1712569833824,-156.65,0.00019385,2]
[321859665,1712569833834,-156.65,0.00019445,2]
[321859666,1712569833843,-200.25464178,0.00019473,2]
[321859667,1712569833852,-156.65,0.00019506,2]
[321859668,1712569833861,-332.8990054,0.00019614,2]
[321859669,1712569833871,-2184.1404,0.00019615,2]
[321859670,1712569833880,-299.98331112,0.00019798,2]
[321859671,1712569833889,-784.6553,0.000199,2]
[321859672,1712569833898,-7500.0,0.000199,2]
[321859673,1712569833908,-7788.54431486,0.00019978,2]
[321859674,1712569833917,-220.23863971,0.0001999,2]
[321859675,1712569833926,-207.17268662,0.00019998,2]
[321859676,1712569833936,-155.0,0.00019998,2]
[321859677,1712569833945,-550.51311595,0.00019998,2]
[321859678,1712569833955,-289.13586379,0.00019998,2]
[321859679,1712569833965,-155.0,0.00019998,3]
[321859680,1712569833975,-270.79630459,0.00019998,2]
[321859681,1712569833985,-262.97889526,0.00019998,2]
[321859682,1712569833994,-282.78725054,0.00019998,2]
[321859683,1712569834003,-375.68452927,0.00019998,2]
[321859684,1712569834012,-8788.60121693,0.00019998,2]
[321859685,1712569834023,-193.57542793,0.00019998,2]
[321859686,1712569834033,-345.00536434,0.00019998,2]
[321859687,1712569834050,-390.97512581,0.00019998,2]
[321859688,1712569834062,-529.78909535,0.00019998,2]
[321859689,1712569834073,-910.96368124,0.00019998,2]
[321859690,1712569834083,-156.76458002,0.00019998,2]
[321859691,1712569834092,-155.0,0.00019998,2]
[321859692,1712569834101,-180.61306942,0.00019998,2]
[321859693,1712569834111,-155.0,0.00019998,2]
[321859694,1712569834120,-160.6631939,0.00019998,2]
[321859695,1712569834129,-155.17468279,0.00019998,2]
[321859696,1712569834138,-166.51209388,0.00019998,2]
[321859697,1712569834147,-339.95738627,0.00019998,2]
[321859698,1712569834157,-246.0243139,0.00019998,2]
[321859699,1712569834166,-1321.65543536,0.00019998,2]
[321859700,1712569834175,-182.25389863,0.00019999,2]
[321859701,1712569834184,-6742.53296184,0.0002,2]
[321859702,1712569834200,-13420.87643793,0.0002,2]
[321859703,1712569834211,-432840.0,0.0002,2]
[321859704,1712569834221,-624.22352962,0.0002,2]
[321859705,1712569834231,-16665.71353346,0.0002,2]
[321859706,1712569834241,-44809.41899957,0.0002,2]
[321859707,1712569834250,-640.23975986,0.0002,2]
[321859708,1712569834259,-1761.90527738,0.0002,2]
[321859709,1712569834269,-155.0,0.0002,2]
[321859710,1712569834281,-6205.10762654,0.0002,2]
[321859711,1712569834290,-28586.82393138,0.0002,2]
[321859712,1712569834299,-540.48,0.00020222,3]
[321859713,1712569834309,-325.9423,0.00020341,2]
[321859714,1712569834318,-25107.1778,0.00020375,2]
[321859715,1712569834328,-165.3,0.00020377,2]
[321859716,1712569834339,-180.95,0.00020442,2]
[321859717,1712569834348,-192.1189982,0.00020467,2]
[321859718,1712569834358,-154.42119181,0.00020467,2]
[321859719,1712569834368,-7821.6391836,0.00020471,2]
[321859720,1712569834378,-179.02628782,0.00020471,2]
[321859721,1712569834389,-1241.19748567,0.00020472,2]
[321859722,1712569834398,-2694.29669994,0.00020472,2]
[321859723,1712569834408,-246.28033513,0.00020472,2]
[321859724,1712569834418,-158.18091608,0.00020472,2]
[321859725,1712569834427,-1020.63944103,0.00020472,2]
[321859726,1712569834436,-535.05095744,0.00020473,2]
[321859727,1712569834446,-39944.8804,0.00020475,2]
[321859728,1712569834458,-100000.0,0.00020475,2]
[321859729,1712569834468,-150.0,0.000205,2]
[321859730,1712569834477,-230.9915,0.00020508,2]
[321859731,1712569834487,-7821.63918351,0.0002051,2]
[321859732,1712569834496,-189.124,0.00020529,2]
[321859733,1712569834506,-655.0,0.00020548,2]
[321859734,1712569834515,-586.0,0.00020548,2]
[321859735,1712569834525,-526.0,0.00020548,2]
[321859736,1712569834534,-7821.63918351,0.00020549,2]
[321859737,1712569834544,-245000.0,0.00020567,2]
[321859738,1712569834554,-7821.63918351,0.00020588,2]
[321859739,1712569834563,-179.0262878,0.00020614,2]
[321859740,1712569834573,-500.0,0.00020625,2]
[321859741,1712569834583,-7821.63918351,0.00020627,2]
[321859742,1712569834593,-7821.63918351,0.00020666,2]
[321859743,1712569834603,-1109.36667081,0.00020683,2]
[321859744,1712569834613,-150.0,0.000207,2]
[321859745,1712569834624,-1000.0,0.000207,2]
[321859746,1712569834633,-7821.63918351,0.00020705,2]
[321859747,1712569834643,-7821.63918351,0.00020744,2]
[321859748,1712569834652,-179.0262878,0.00020757,2]
[321859749,1712569834662,-7821.63918351,0.00020783,2]
[321859750,1712569834671,-1631.39736,0.0002079,2]
[321859751,1712569834681,-633.0,0.000208,2]
[321859752,1712569834690,-1000.0,0.000208,2]
[321859753,1712569834699,-7821.63918351,0.00020822,2]
[321859754,1712569834714,-200.0,0.00020831,2]
[321859755,1712569834724,-800.0,0.00020831,2]
[321859756,1712569834734,-500.0,0.00020831,2]
[321859757,1712569834743,-800.0,0.00020832,2]
[321859758,1712569834752,-500.0,0.00020832,2]
[321859759,1712569834762,-200.0,0.00020832,2]
[321859760,1712569834772,-800.0,0.00020832,2]
[321859761,1712569834782,-800.0,0.00020832,2]
[321859762,1712569834791,-200.0,0.00020832,2]
[321859763,1712569834801,-200.0,0.00020832,2]
[321859764,1712569834810,-500.0,0.00020832,2]
[321859765,1712569834820,-500.0,0.00020832,2]
[321859766,1712569834830,-500.0,0.00020832,2]
[321859767,1712569834840,-200.0,0.00020832,2]
[321859768,1712569834850,-7821.63918351,0.00020861,2]
[321859769,1712569834859,-213.0,0.000209,2]
[321859770,1712569834869,-150.0,0.000209,2]
[321859771,1712569834879,-8048.96,0.000209,2]
[321859772,1712569834889,-179.0262878,0.000209,2]
[321859773,1712569834898,-3541.04282878,0.000209,2]
[321859774,1712569834988,-499.01612085,0.000209,2]
[321859775,1712569835002,-3781.58023388,0.000209,2]
[321859776,1712569835012,-829.08144523,0.000209,2]
[321859777,1712569835022,-848.43452141,0.000209,2]
[321859778,1712569835031,-1000.0,0.000209,2]
[321859779,1712569835041,-518.3351632,0.000209,2]
[321859780,1712569835051,-261.43307599,0.000209,3]
[321859781,1712569835060,-162.69749968,0.000209,2]
[321859782,1712569835070,-10518.70476356,0.000209,2]
[321859783,1712569835082,-1273.34585803,0.000209,2]
[321859784,1712569835152,-660.92885,0.000209,2]
[321859785,1712569835164,-1372.5,0.000209,2]
[321859786,1712569835287,-287.96200002,0.000209,2]
[321859787,1712569835334,-529.04721068,0.000209,2]
[321859788,1712569835346,-8271.48162411,0.000209,2]
[321859789,1712569835355,-170.55362329,0.000209,2]
[321859790,1712569835365,-488.82,0.00020926,2]
[321859791,1712569835375,-154.42119172,0.00020948,2]
[321859792,1712569835384,-12648.02356089,0.00020986,2]
[321859856,1712569841639,-269.22720054,0.00018079,2]
[321859857,1712569841649,-662.21118686,0.0001808,2]
[321859858,1712569841659,-72.45161942,0.00020986,2]
[321859859,1712569841837,-147857.52481969,0.00020986,2]
[321859860,1712569841846,-1057.0,0.00020986,2]
[321859861,1712569841856,-220.23863971,0.0002099,2]
[321859862,1712569841865,-1125.12123892,0.00020998,2]
[321859863,1712569841874,-9737.19946634,0.00020999,2]
[321859864,1712569841883,-206.59266165,0.00020999,2]
[321859865,1712569841893,-5825.99102334,0.00020999,2]
[321859866,1712569841902,-553.46163355,0.00020999,2]
[321859867,1712569841912,-229.39144127,0.00020999,2]
[321859868,1712569841921,-50481.77747554,0.00021,2]
[321859869,1712569841964,-430.032,0.00021,2]
[321859870,1712569842129,-18089.61000578,0.00021,2]
[321859871,1712569842145,-2644.00786316,0.00021,2]
[321859876,1712569842746,-137440.6,0.00021,2]
[321859885,1712569844795,-5171.7986065,0.00021,2]
[321859886,1712569845087,-687547.49644453,0.00021,2]
[321859887,1712569845097,-966.0,0.00021,2]
[321859888,1712569845106,-1388.0,0.00021,2]
[321859889,1712569845115,-2286.0,0.00021,2]
[321859890,1712569845124,-460.0,0.00021,2]
[321859891,1712569845133,-1228.0,0.00021,2]
[321859892,1712569845142,-1259.0,0.00021,2]
[321859893,1712569845152,-539.0,0.00021,2]
[321859894,1712569845162,-806.0,0.00021,2]
[321859895,1712569845171,-607.0,0.00021,2]
[321859896,1712569845180,-1944.0,0.00021,2]
[321859897,1712569845190,-435.0,0.00021,2]
[321859898,1712569845201,-280.0,0.00021,2]
[321859899,1712569845215,-150.0,0.00021,2]
[321859900,1712569845224,-436.6,0.00021,2]
[321859901,1712569845235,-1140.0,0.00021,2]
[321859902,1712569845244,-1469.0,0.00021,2]
[321859903,1712569845253,-3037.0,0.00021,2]
[321859904,1712569845262,-2435.0,0.00021,2]
[321859905,1712569845271,-1634.0,0.00021,2]
[321859906,1712569845282,-150.0,0.00021,2]
[321859907,1712569845292,-354.0,0.00021,2]
[321859908,1712569845301,-1328.767,0.00021,2]
[321859909,1712569845311,-2461.0,0.00021,2]
[321859910,1712569845321,-150.276,0.00021,2]
[321859911,1712569845331,-37544.0,0.00021,2]
[321859912,1712569845341,-4793.0,0.00021,2]
[321859913,1712569845352,-5707.0,0.00021,2]
[321859914,1712569845362,-150.0,0.00021,2]
[321859915,1712569845371,-1052.0,0.00021,2]
[321859916,1712569845381,-2426193.40205674,0.00021,2]
[321859917,1712569845390,-2414.34002793,0.00021,2]
[321859918,1712569845399,-476418.58790029,0.00021,2]
[321859919,1712569845408,-4833258.48826121,0.00021,2]
[321859920,1712569845417,-7737.95204881,0.00021,2]
[321859921,1712569845427,-454.40065796,0.00021,2]
[321859922,1712569845436,-5778022.54301982,0.00021,2]
[321859923,1712569845445,-734251.40046444,0.00021,2]
[321859924,1712569845455,-1030407.44162487,0.00021,2]
[321859925,1712569845466,-500.0,0.00021,2]
[321859926,1712569845475,-647.8937062,0.00021,2]
[321859927,1712569845484,-1646.25339036,0.00021,2]
[321859928,1712569845494,-20000.0,0.00021,2]
[321859929,1712569845503,-2134.0,0.00021,2]
[321859930,1712569845512,-328.66,0.00021,2]
[321859932,1712569845521,-2077427.03734284,0.00021,2]
[321859934,1712569845533,-2593786.70269662,0.00021,2]
[321859935,1712569845542,-79275.94933679,0.00021,2]
[321859936,1712569845552,-1800.0,0.00021,3]
[321859937,1712569845561,-389.50866272,0.00021,2]
[321859938,1712569845570,-233.70519763,0.00021,2]
[321859939,1712569845579,-155.80346509,0.00021,2]
[321859941,1712569845589,-150.0,0.00021,2]
[321859943,1712569845598,-288.5292445,0.00021,2]
[321859944,1712569845607,-2179.74,0.00021,2]
[321859945,1712569845616,-2020.62,0.00021,2]
[321859946,1712569845625,-150.0,0.00021,2]
[321859947,1712569845635,-1000.0,0.00021,2]
[321859948,1712569845645,-2900.0,0.00021096,2]
[321859949,1712569845654,-1000.0,0.000211,2]
[321859950,1712569845663,-1109.36667082,0.00021148,2]
[321859951,1712569845672,-500.26372968,0.00021152,2]
[321859952,1712569845682,-1000.0,0.00021224,2]
[321859953,1712569845691,-1631.39737,0.0002125,2]
[321859954,1712569845701,-2100.0,0.00021357,2]
[321859955,1712569845711,-150.0,0.00021357,2]
[321859956,1712569845720,-517.61,0.0002137,2]
[321859957,1712569845729,-1155.4,0.00021398,2]
[321859958,1712569845739,-154.42119172,0.00021428,2]
[321859959,1712569845749,-150.0,0.000215,2]
[321859960,1712569845758,-656.0,0.00021575,2]
[321859961,1712569845768,-586.0,0.00021575,2]
[321859962,1712569845777,-526.0,0.00021575,2]
[321859963,1712569845787,-173.75,0.0002159,2]
[321859964,1712569845796,-170.0,0.0002181,2]
[321859965,1712569845805,-169.12,0.00021868,2]
[321859966,1712569845815,-1631.39736,0.0002188,2]
[321859967,1712569845824,-1465.30137738,0.000219,2]
[321859968,1712569845835,-1465.30137738,0.000219,2]
[321859969,1712569845845,-1465.30137738,0.000219,2]
[321859970,1712569845854,-1465.30137738,0.000219,2]
[321859971,1712569845863,-1465.30137738,0.000219,2]
[321859972,1712569845873,-1465.30137738,0.000219,2]
[321859973,1712569845883,-1465.30137738,0.000219,2]
[321859974,1712569845892,-1465.30137738,0.000219,2]
[321859975,1712569845901,-1465.30137738,0.000219,2]
[321859976,1712569845911,-1465.30137738,0.000219,2]
[321859977,1712569845920,-1465.30137738,0.000219,2]
[321859978,1712569845930,-1465.30137738,0.000219,2]
[321859979,1712569845939,-1465.30137738,0.000219,2]
[321859980,1712569845949,-1465.30137738,0.000219,2]
[321859981,1712569845958,-1465.30137738,0.000219,2]
[321859982,1712569845969,-1465.30137738,0.000219,2]
[321859983,1712569845978,-1465.30137738,0.000219,2]
[321859984,1712569845987,-1465.30137738,0.000219,2]
[321859985,1712569845996,-1465.30137738,0.000219,2]
[321859986,1712569846005,-1465.30137738,0.000219,2]
[321859987,1712569846014,-1465.30137738,0.000219,2]
[321859988,1712569846023,-1465.30137738,0.000219,2]
[321859989,1712569846032,-1465.30137738,0.000219,2]
[321859990,1712569846041,-1465.30137738,0.000219,2]
[321859991,1712569846051,-1465.30137738,0.000219,2]
[321859992,1712569846060,-1465.30137738,0.000219,2]
[321859993,1712569846069,-1465.30137738,0.000219,2]
[321859994,1712569846078,-1465.30137738,0.000219,2]
[321859995,1712569846087,-1465.30137738,0.000219,2]
[321859996,1712569846097,-1465.30137738,0.000219,2]
[321859997,1712569846106,-790.74859555,0.000219,2]
[321859998,1712569846115,-207.9421488,0.000219,2]
[321859999,1712569846124,-207.94214879,0.000219,2]
[321860000,1712569846134,-154.42119172,0.00021909,2]
[321860001,1712569846143,-151.0,0.00021918,2]
[321860002,1712569846152,-174.934779,0.00021918,2]
[321860003,1712569846162,-154.47658,0.00021918,2]
[321860004,1712569846171,-151.0,0.00021918,2]
[321860005,1712569846181,-151.0,0.00021918,2]
[321860006,1712569846191,-151.0,0.00021918,2]
[321860007,1712569846203,-151.0,0.00021918,2]
[321860008,1712569846214,-151.0,0.00021918,2]
[321860009,1712569846223,-151.0,0.00021918,2]
[321860010,1712569846232,-151.0,0.00021918,2]
[321860011,1712569846241,-151.0,0.00021918,2]
[321860012,1712569846250,-151.0,0.00021918,2]
[321860013,1712569846260,-192.29415,0.00021918,2]
[321860014,1712569846269,-192.29415,0.00021918,2]
[321860015,1712569846279,-151.0,0.00021918,2]
[321860016,1712569846288,-151.0,0.00021918,2]
[321860017,1712569846297,-151.0,0.00021918,2]
[321860018,1712569846307,-151.0,0.00021918,2]
[321860019,1712569846315,-151.0,0.00021918,2]
[321860020,1712569846325,-151.0,0.00021918,2]
[321860021,1712569846334,-151.0,0.00021918,2]
[321860022,1712569846343,-605.638042,0.00021918,2]
[321860023,1712569846352,-375.447076,0.00021918,2]
[321860024,1712569846361,-1317.577025,0.00021918,2]
[321860025,1712569846371,-375.447076,0.00021918,2]
[321860026,1712569846380,-1317.577025,0.00021918,2]
[321860027,1712569846390,-151.0,0.00021918,2]
[321860028,1712569846399,-151.0,0.00021918,2]
[321860029,1712569846408,-262.60337,0.00021918,2]
[321860030,1712569846417,-151.0,0.00021918,2]
[321860031,1712569846427,-151.0,0.00021918,2]
[321860032,1712569846436,-151.0,0.00021918,2]
[321860033,1712569846445,-249.095712,0.00021918,2]
[321860034,1712569846454,-151.0,0.00021918,2]
[321860035,1712569846465,-249.095712,0.00021918,2]
[321860036,1712569846474,-151.0,0.00021918,2]
[321860037,1712569846484,-151.0,0.00021918,2]
[321860038,1712569846494,-151.0,0.00021918,2]
[321860039,1712569846504,-151.0,0.00021918,2]
[321860040,1712569846513,-151.0,0.00021918,2]
[321860041,1712569846522,-151.0,0.00021918,2]
[321860042,1712569846531,-151.0,0.00021918,2]
[321860043,1712569846541,-151.0,0.00021918,2]
[321860044,1712569846550,-151.0,0.00021918,2]
[321860045,1712569846559,-151.0,0.00021918,2]
[321860046,1712569846569,-151.0,0.00021918,2]
[321860048,1712569846578,-466.792738,0.00021918,2]
[321860050,1712569846587,-157.835278,0.00021918,2]
[321860052,1712569846597,-466.792738,0.00021918,2]
[321860054,1712569846606,-203.457553,0.00021918,2]
[321860055,1712569846615,-157.835278,0.00021918,2]
[321860057,1712569846625,-203.457553,0.00021918,2]
[321860059,1712569846636,-353.703383,0.00021918,2]
[321860060,1712569846645,-353.703383,0.00021918,2]
[321860061,1712569846655,-290.034478,0.00021918,2]
[321860062,1712569846664,-151.0,0.00021918,2]
[321860063,1712569846683,-151.0,0.00021918,2]
[321860064,1712569846695,-2130.731929,0.00021918,2]
[321860065,1712569846705,-2130.731929,0.00021918,2]
[321860066,1712569846716,-910.260697,0.00021918,2]
[321860067,1712569846726,-910.260697,0.00021918,2]
[321860068,1712569846736,-8303.3,0.00021918,2]
[321860069,1712569846745,-155.302024,0.00021918,2]
[321860070,1712569846755,-151.0,0.00021918,2]
[321860071,1712569846765,-158.444861,0.00021918,2]
[321860072,1712569846774,-284.508178,0.00021918,2]
[321860073,1712569846783,-151.0,0.00021918,2]
[321860074,1712569846792,-284.508178,0.00021918,2]
[321860075,1712569846802,-360.805123,0.00021918,2]
[321860076,1712569846812,-360.805123,0.00021918,2]
[321860077,1712569846821,-151.0,0.00021918,2]
[321860078,1712569846831,-151.0,0.00021918,2]
[321860079,1712569846841,-151.0,0.00021918,2]
[321860080,1712569846850,-151.0,0.00021918,2]
[321860081,1712569846860,-151.0,0.00021918,2]
[321860082,1712569846869,-151.421921,0.00021918,2]
[321860083,1712569846878,-151.0,0.00021918,2]
[321860084,1712569846888,-416.999709,0.00021918,2]
[321860085,1712569846898,-416.999709,0.00021918,2]
[321860086,1712569846907,-151.0,0.00021918,2]
[321860087,1712569846917,-151.0,0.00021918,2]
[321860088,1712569846927,-341.55636,0.00021918,2]
[321860089,1712569846937,-42.36507374,0.00021918,2]
[321860090,1712569846982,-295.37778526,0.00021918,2]
[321860091,1712569846991,-341.55636,0.00021918,2]
[321860092,1712569847001,-151.0,0.00021918,2]
[321860093,1712569847010,-337.742859,0.00021918,2]
[321860094,1712569847021,-151.0,0.00021918,2]
[321860095,1712569847030,-151.0,0.00021918,2]
[321860097,1712569847039,-342.238441,0.00021918,2]
[321860100,1712569847049,-342.238441,0.00021918,2]
[321860101,1712569847059,-642.101401,0.00021918,2]
[321860104,1712569847069,-642.101401,0.00021918,2]
[321860105,1712569847079,-151.0,0.00021918,2]
[321860108,1712569847089,-374.893467,0.00021918,2]
[321860109,1712569847098,-374.893467,0.00021918,2]
[321860112,1712569847108,-151.0,0.00021918,2]
[321860114,1712569847117,-151.0,0.00021918,2]
[321860116,1712569847127,-1500.0,0.00021918,2]
[321860117,1712569847136,-151.0,0.00021918,2]
[321860120,1712569847145,-151.446785,0.00021918,2]
[321860122,1712569847154,-151.0,0.00021918,2]
[321860124,1712569847163,-151.21026,0.00021918,2]
[321860127,1712569847173,-354.271728,0.00021918,2]
[321860130,1712569847182,-354.271728,0.00021918,2]
[321860132,1712569847191,-236.172902,0.00021918,2]
[321860134,1712569847201,-236.172902,0.00021918,2]
[321860136,1712569847216,-287.436596,0.00021918,2]
[321860138,1712569847226,-287.436596,0.00021918,2]
[321860140,1712569847235,-151.0,0.00021918,2]
[321860142,1712569847244,-151.0,0.00021918,2]
[321860144,1712569847254,-151.0,0.00021918,2]
[321860146,1712569847263,-156.749847,0.00021918,2]
[321860148,1712569847273,-160.892085,0.00021918,2]
[321860150,1712569847282,-2948.438494,0.00021918,2]
[321860152,1712569847292,-156.749847,0.00021918,2]
[321860154,1712569847301,-151.0,0.00021918,2]
[321860166,1712569847482,-151.0,0.00021918,2]